bitfinex/quotes_ETHUSD_20230109
["timestamp","ask_amount","ask_price","bid_price","bid_amount"]
[1673268307093,25.58351453,1319.4,1319.3,1.12574423]
[1673268307429,26.12952148,1319.4,1319.3,1.12574423]
[1673268307639,26.69832148,1319.4,1319.3,1.10266358]
[1673268308270,23.3124,1319.4,1319.3,1.10266358]
[1673268308441,26.69832148,1319.4,1319.3,1.10266358]
[1673268311732,26.69832148,1319.4,1319.3,1.07204323]
[1673268312560,23.3124,1319.4,1319.3,1.07204323]
[1673268312770,26.72060802,1319.4,1319.3,1.07204323]
[1673268313446,27.26264173,1319.4,1319.3,1.07204323]
[1673268313660,26.72016183,1319.4,1319.3,1.07204323]
[1673268314039,23.3124,1319.4,1319.3,1.07204323]
[1673268314452,27.26264173,1319.4,1319.3,1.0414335]
[1673268314669,23.3124,1319.4,1319.3,1.0414335]
[1673268315505,30.26264173,1319.4,1319.3,1.0414335]
[1673268316249,26.3124,1319.4,1319.3,1.0414335]
[1673268317509,29.71903878,1319.4,1319.3,1.0414335]
[1673268317727,29.71903885,1319.4,1319.3,1.0414335]
[1673268317928,26.3124,1319.4,1319.3,1.0414335]
[1673268323064,30.26264173,1319.4,1319.3,1.0414335]
[1673268324544,6.98070971,1319.4,1319.3,1.0414335]
[1673268324963,14.55990971,1319.4,1319.3,1.0414335]
[1673268326671,22.13910971,1319.4,1319.3,1.0414335]
[1673268328021,29.71830971,1319.4,1319.3,1.0414335]
[1673268328453,22.13910971,1319.4,1319.3,1.0414335]
[1673268328678,29.71830971,1319.4,1319.3,1.0414335]
[1673268328889,22.13910971,1319.4,1319.3,1.0414335]
[1673268332138,29.71941265,1319.4,1319.3,1.0414335]
[1673268332343,29.71937863,1319.4,1319.3,1.0414335]
[1673268334489,29.15057863,1319.4,1319.3,1.0414335]
[1673268335539,29.15057863,1319.4,1319.3,1.01101367]
[1673268337907,29.15041535,1319.4,1319.3,1.01101367]
[1673268338410,32.55721655,1319.4,1319.3,1.01101367]
[1673268338700,35.96403102,1319.4,1319.3,1.01101367]
[1673268341595,35.96403102,1319.4,1319.3,0.9806075]
[1673268341850,39.91427275,1319.4,1319.3,0.9806075]
[1673268342157,35.96403102,1319.4,1319.3,0.9806075]
[1673268342681,35.96403102,1319.4,1319.3,0.95161913]
[1673268343567,35.96403102,1319.4,1319.3,0.92263116]
[1673268350761,48.75392612,1319.4,1319.3,0.92263116]
[1673268350986,44.08817376,1319.4,1319.3,0.92263116]
[1673268351541,53.94250834,1319.4,1319.0,0.096]
[1673268351712,1.377,1319.1,1318.8,5.74163983]
[1673268351920,2.8373278,1318.9,1318.8,5.74163983]
[1673268352165,18.0014678,1318.9,1318.8,5.74163983]
[1673268352463,18.0074678,1318.9,1318.8,5.74163983]
[1673268353015,20.27747341,1318.9,1318.8,5.74163983]
[1673268353543,25.02221561,1318.9,1318.8,5.74163983]
[1673268353856,2.27600561,1318.9,1318.8,5.74163983]
[1673268354030,3.97149888,1318.9,1318.8,5.74163983]
[1673268354387,26.71772073,1318.9,1318.8,5.74163983]
[1673268354699,26.72372073,1318.9,1318.8,5.74163983]
[1673268355005,19.14165073,1318.9,1318.8,5.74163983]
[1673268355430,20.84246974,1318.9,1318.8,5.74163983]
[1673268355590,28.42453974,1318.9,1318.8,5.74163983]
[1673268356674,31.25905906,1318.9,1318.8,5.74163983]
[1673268358109,31.25905906,1318.9,1318.8,5.73963983]
[1673268358325,31.25905906,1318.9,1318.8,5.74163983]
[1673268359586,33.52404158,1318.9,1318.8,5.74163983]
[1673268359795,33.52403919,1318.9,1318.8,2.91892271]
[1673268360122,33.52403919,1318.9,1318.8,2.82292271]
[1673268360123,31.25905906,1318.9,1318.8,2.82292271]
[1673268360325,31.82805906,1318.9,1318.8,2.82292271]
[1673268360537,31.82805906,1318.9,1318.8,2.78906466]
[1673268361162,34.0930064,1318.9,1318.8,2.78906466]
[1673268361592,33.5240064,1318.9,1318.8,2.78906466]
[1673268362262,7.94327708,1318.9,1318.8,2.78906466]
[1673268362443,9.64194418,1318.9,1318.8,2.78906466]
[1673268362654,7.37699684,1318.9,1318.8,2.78906466]
[1673268364109,14.95906684,1318.9,1318.8,2.78906466]
[1673268364426,7.37699684,1318.9,1318.8,2.78906466]
[1673268365635,22.54113684,1318.9,1318.8,2.78906466]
[1673268365793,14.95906684,1318.9,1318.8,2.78906466]
[1673268367511,22.54113684,1318.9,1318.8,2.78906466]
[1673268367837,30.12320684,1318.9,1318.8,2.78906466]
[1673268368011,32.38815418,1318.9,1318.8,2.78906466]
[1673268368442,24.80608418,1318.9,1318.8,2.78906466]
[1673268370532,32.38815418,1318.9,1318.8,2.78906466]
[1673268370745,22.54113684,1318.9,1318.8,2.78906466]
[1673268372765,22.54113684,1318.9,1318.8,25.53701466]
[1673268372766,7.37699684,1318.9,1318.8,25.53701466]
[1673268373093,5.67832974,1318.9,1318.8,29.76293213]
[1673268374010,5.67832974,1318.9,1318.8,18.05036466]
[1673268374349,5.67832974,1318.9,1318.8,10.46771466]
[1673268374781,5.67832974,1318.9,1318.8,21.8480253]
[1673268374951,5.67832974,1318.9,1318.8,14.2653753]
[1673268375574,5.67832974,1318.9,1318.8,21.8480253]
[1673268375785,5.67832974,1318.9,1318.8,26.35774283]
[1673268376108,5.67832974,1318.9,1318.8,20.50609283]
[1673268376333,5.67832974,1318.9,1318.8,37.39739283]
[1673268376666,5.67832974,1318.9,1318.8,38.15571819]
[1673268378774,5.67832974,1318.9,1318.8,30.57306819]
[1673268379942,5.67832974,1318.9,1318.8,38.15571819]
[1673268380678,5.67832974,1318.9,1318.8,15.40776819]
[1673268381030,5.67832974,1318.9,1318.8,26.06335066]
[1673268381206,5.67832974,1318.9,1318.8,33.64600066]
[1673268382142,5.67832974,1318.9,1318.8,18.48070066]
[1673268382687,5.67832974,1318.9,1318.8,26.06335066]
[1673268383364,5.67832974,1318.9,1318.8,33.64600066]
[1673268384362,5.67832974,1318.9,1318.8,38.57722673]
[1673268390183,5.67832974,1318.9,1318.8,30.99457673]
[1673268390927,5.67832974,1318.9,1318.8,38.57722673]
[1673268391370,5.67832974,1318.9,1318.8,30.99457673]
[1673268391911,5.67832974,1318.9,1318.8,38.57722673]
[1673268392062,5.67832974,1318.9,1318.8,30.99457673]
[1673268393452,5.67832974,1318.9,1318.8,38.57722673]
[1673268394109,5.67832974,1318.9,1318.8,30.99457673]
[1673268394487,5.67832974,1318.9,1318.8,38.57722673]
[1673268395551,5.67832974,1318.9,1318.8,30.99457673]
[1673268396011,5.67832974,1318.9,1318.8,38.57722673]
[1673268404377,0.006,1318.9,1318.8,38.57722673]
[1673268404588,7.9281,1319.1,1318.8,38.57722673]
[1673268404933,7.9281,1319.1,1319.0,16.894]
[1673268405147,7.9281,1319.1,1319.0,28.36916064]
[1673268405336,7.9281,1319.1,1319.0,30.10016064]
[1673268405764,0.006,1319.1,1319.0,30.10016064]
[1673268405989,2.83720005,1319.2,1319.0,30.10016064]
[1673268406329,2.83720005,1319.2,1319.1,11.37858064]
[1673268406516,2.83720005,1319.2,1319.1,11.47458064]
[1673268406690,2.83720005,1319.2,1319.1,3.89366064]
[1673268406900,2.83720005,1319.2,1319.1,3.79766064]
[1673268407482,2.83720005,1319.2,1319.1,11.37858064]
[1673268407672,2.83720005,1319.2,1319.1,11.47458064]
[1673268408315,2.83720005,1319.2,1319.1,19.05550064]
[1673268409001,2.83720005,1319.2,1319.1,26.63642064]
[1673268409466,2.83720005,1319.2,1319.1,11.47458064]
[1673268410267,2.26830005,1319.2,1319.1,8.4614517]
[1673268410528,0.066,1319.3,1319.1,31.95983911]
[1673268410842,40.09790005,1319.4,1319.3,7.57977]
[1673268410843,0.006,1319.4,1319.3,7.57977]
[1673268411045,2.27030005,1319.4,1319.3,12.9541737]
[1673268411279,2.26830005,1319.4,1319.3,6.13472906]
[1673268411640,2.26830005,1319.4,1319.3,13.71449906]
[1673268412477,5.73851493,1319.5,1319.3,13.71449906]
[1673268412707,3.41021488,1319.5,1319.4,3.79766064]
[1673268412922,3.40421488,1319.5,1319.4,3.79766064]
[1673268414211,3.40421488,1319.5,1319.4,11.37686064]
[1673268414369,5.67171309,1319.5,1319.4,11.47286064]
[1673268414584,5.10891309,1319.5,1319.4,11.47286064]
[1673268414824,5.10891309,1319.5,1319.4,19.05206064]
[1673268415364,5.10891309,1319.5,1319.4,11.47286064]
[1673268415737,5.10891309,1319.5,1319.4,19.05206064]
[1673268415941,2.27349821,1319.5,1319.4,30.44934591]
[1673268416152,11.27641194,1319.6,1319.4,33.90334591]
[1673268416361,10.64771194,1319.6,1319.5,5.52866064]
[1673268416616,2.91442861,1319.6,1319.5,28.36052064]
[1673268416790,5.17488385,1319.6,1319.5,26.62952064]
[1673268416997,5.18088385,1319.6,1319.5,26.62952064]
[1673268417413,5.18088385,1319.6,1319.5,30.60450123]
[1673268418267,2.34546897,1319.6,1319.5,30.60450123]
[1673268418663,2.33946897,1319.6,1319.5,30.60450123]
[1673268420298,5.17488385,1319.6,1319.5,3.89366064]
[1673268420522,5.18088385,1319.6,1319.5,3.79766064]
[1673268421348,2.91442861,1319.6,1319.5,3.79766064]
[1673268421566,2.90842861,1319.6,1319.5,3.79766064]
[1673268422382,10.48647861,1319.6,1319.5,3.79766064]
[1673268422621,18.07052861,1319.6,1319.5,3.75971057]
[1673268423015,2.91442861,1319.6,1319.5,3.75971057]
[1673268423225,10.48647861,1319.6,1319.5,3.75971057]
[1673268423437,18.07052861,1319.6,1319.5,3.72695575]
[1673268423696,25.64857861,1319.6,1319.5,3.72695575]
[1673268423871,18.07052861,1319.6,1319.5,3.72695575]
[1673268424426,10.49247861,1319.6,1319.5,3.72695575]
[1673268424647,10.49247861,1319.6,1319.5,3.68900568]
[1673268425016,2.91442861,1319.6,1319.5,3.68900568]
[1673268425237,2.90842861,1319.6,1319.5,3.68900568]
[1673268425550,2.90842861,1319.6,1319.5,3.65105561]
[1673268425765,5.17250043,1319.6,1319.5,3.65105561]
[1673268426010,5.17850097,1319.6,1319.5,3.65105561]
[1673268426744,5.17850097,1319.6,1319.5,3.6183002]
[1673268426909,2.34308609,1319.6,1319.5,11.1969202]
[1673268427121,2.33708609,1319.6,1319.5,26.4501602]
[1673268427329,2.33708609,1319.6,1319.5,30.02495122]
[1673268428608,0.07301373,1319.6,1319.5,30.02495122]
[1673268428812,0.07301373,1319.6,1319.5,26.4501602]
[1673268429235,0.07301373,1319.6,1319.5,18.8715402]
[1673268429585,2.33708609,1319.6,1319.5,18.83877565]
[1673268429812,0.07301373,1319.6,1319.5,28.13439565]
[1673268430171,0.07301373,1319.6,1319.5,31.87761022]
[1673268435456,0.07301373,1319.6,1319.5,33.59661022]
[1673268437149,0.07301373,1319.6,1319.5,33.82661022]
[1673268437465,0.07301373,1319.6,1319.5,31.87761022]
[1673268443771,0.07301373,1319.6,1319.5,24.29899022]
[1673268443986,0.07301373,1319.6,1319.5,31.87761022]
[1673268446145,0.07501373,1319.6,1319.5,31.87561022]
[1673268446385,0.07301373,1319.6,1319.5,31.87761022]
[1673268448378,2.33708609,1319.6,1319.5,31.87761022]
[1673268450656,2.33708609,1319.6,1319.5,16.71767234]
[1673268451126,2.33708609,1319.6,1319.5,31.87491234]
[1673268451771,0.07301373,1319.6,1319.5,32.10491234]
[1673268452924,0.07501373,1319.6,1319.5,32.10291234]
[1673268453241,0.07301373,1319.6,1319.5,33.82391234]
[1673268454259,2.33708609,1319.6,1319.5,33.82391234]
[1673268454876,5.17250097,1319.6,1319.5,5.39783777]
[1673268455074,2.91442861,1319.6,1319.5,5.39783777]
[1673268455293,2.90842861,1319.6,1319.5,5.39783777]
[1673268455538,2.90842861,1319.6,1319.5,12.97645777]
[1673268455704,2.90842861,1319.6,1319.5,5.39783777]
[1673268455910,5.17745876,1319.6,1319.5,5.39783777]
[1673268456177,5.17745876,1319.6,1319.5,12.97645777]
[1673268456178,5.18345876,1319.6,1319.5,12.97645777]
[1673268456696,5.18343585,1319.6,1319.5,12.97645777]
[1673268458242,5.18343585,1319.6,1319.5,11.25745777]
[1673268461538,5.18343585,1319.6,1319.5,18.83607777]
[1673268463290,5.18343585,1319.6,1319.5,26.41469777]
[1673268463543,2.34802097,1319.6,1319.5,26.41469777]
[1673268463743,2.34202097,1319.6,1319.5,26.41469777]
[1673268464492,5.17743585,1319.6,1319.5,26.41469777]
[1673268464792,2.34802097,1319.6,1319.5,26.41469777]
[1673268464989,2.34202097,1319.6,1319.5,26.41469777]
[1673268466005,2.34202097,1319.6,1319.5,33.11694155]
[1673268466466,2.34202097,1319.6,1319.5,31.38594155]
[1673268467846,0.07301373,1319.6,1319.5,31.38594155]
[1673268468636,0.07301373,1319.6,1319.5,33.10294155]
[1673268468963,2.34202097,1319.6,1319.5,33.10294155]
[1673268469802,0.07301373,1319.6,1319.5,33.10294155]
[1673268471519,2.34202097,1319.6,1319.5,17.94570155]
[1673268471689,2.34202097,1319.6,1319.5,20.55307777]
[1673268471900,2.34202097,1319.6,1319.5,28.12916573]
[1673268473300,5.17743585,1319.6,1319.5,28.12916573]
[1673268473519,5.18343585,1319.6,1319.5,28.12916573]
[1673268473880,5.18139024,1319.6,1319.5,12.97192573]
[1673268474091,5.18139024,1319.6,1319.5,5.39330573]
[1673268474346,2.912383,1319.6,1319.5,5.39330573]
[1673268474530,2.906383,1319.6,1319.5,12.97192573]
[1673268474879,2.906383,1319.6,1319.5,20.55054573]
[1673268475782,0.07096812,1319.6,1319.5,33.2718773]
[1673268476118,0.07096812,1319.6,1319.5,33.1738773]
[1673268476734,1e-08,1319.6,1319.5,33.1738773]
[1673268484762,1e-08,1319.6,1319.5,35.28487368]
[1673268485185,0.06755465,1319.7,1319.6,0.00199999]
[1673268485346,0.06755465,1319.7,1319.6,55.92822196]
[1673268485550,0.06755465,1319.7,1319.6,64.37670148]
[1673268485764,0.06306097,1319.9,1319.6,67.23591463]
[1673268486020,0.06306097,1319.9,1319.8,21.24966064]
[1673268486238,0.06306097,1319.9,1319.8,54.65326064]
[1673268489181,0.06306097,1319.9,1319.8,55.41157248]
[1673268489336,0.06306097,1319.9,1319.8,61.71786973]
[1673268496487,0.06306097,1319.9,1319.8,59.99686973]
[1673268513501,0.06306097,1319.9,1319.8,61.72286973]
[1673268513665,0.06755465,1320.0,1319.8,69.72286973]
[1673268513880,0.06755465,1320.0,1319.9,12.52666064]
[1673268514093,0.06755465,1320.0,1319.9,42.94581832]
[1673268514298,0.06755465,1320.0,1319.9,43.70413016]
[1673268514811,0.06755465,1320.0,1319.9,39.70413016]
[1673268516614,1e-08,1320.0,1319.9,39.70413016]
[1673268524272,1e-08,1320.0,1319.9,41.58451516]
[1673268524482,1e-08,1320.0,1319.9,76.58451516]
[1673268525226,1e-08,1320.0,1319.9,79.40503068]
[1673268525440,1e-08,1320.0,1319.9,81.12303068]
[1673268525678,1e-08,1320.0,1319.9,82.25124383]
[1673268525928,1e-08,1320.0,1319.9,81.12303068]
[1673268526098,8.17586039,1320.3,1319.9,91.51310302]
[1673268526262,8.17586039,1320.3,1320.2,5.52366064]
[1673268526472,0.09046039,1320.3,1320.2,37.8704267]
[1673268526726,0.08446039,1320.3,1320.2,38.62873854]
[1673268528648,0.08446039,1320.3,1320.2,41.62873854]
[1673268529434,0.08446039,1320.3,1320.2,43.34773854]
[1673268531476,3.9e-07,1320.3,1320.2,43.57773854]
[1673268535006,3.9e-07,1320.3,1320.2,78.57773854]
[1673268536204,3.9e-07,1320.3,1320.2,53.89793854]
[1673268536415,3.9e-07,1320.3,1320.2,67.32813854]
[1673268536643,3.9e-07,1320.3,1320.2,32.32813854]
[1673268537056,0.00200039,1320.3,1320.2,32.32613854]
[1673268537242,3.9e-07,1320.3,1320.2,32.32813854]
[1673268544159,3.9e-07,1320.3,1320.2,7.65197248]
[1673268544419,3.9e-07,1320.3,1320.2,29.61746064]
[1673268549314,0.00200039,1320.3,1320.2,29.61546064]
[1673268549532,3.9e-07,1320.3,1320.2,29.61746064]
[1673268551520,3.9e-07,1320.3,1320.2,22.04286064]
[1673268552356,3.9e-07,1320.3,1320.2,22.03895999]
[1673268552813,2.27097327,1320.3,1320.2,22.03895999]
[1673268554249,2.27097327,1320.3,1320.2,14.46435999]
[1673268554454,2.27097327,1320.3,1320.2,29.61355999]
[1673268556152,4.00197327,1320.3,1320.2,29.61355999]
[1673268556516,4.00197327,1320.3,1320.2,6.88975999]
[1673268556878,6.83738815,1320.3,1320.2,6.88975999]
[1673268557132,6.84338815,1320.3,1320.2,14.46435999]
[1673268557562,4.00797327,1320.3,1320.2,22.03895999]
[1673268557717,4.00197327,1320.3,1320.2,22.03895999]
[1673268558514,4.00197327,1320.3,1320.2,14.46435999]
[1673268559106,4.00197327,1320.3,1320.2,22.03895999]
[1673268559883,4.00197327,1320.3,1320.2,14.46435999]
[1673268560347,4.00197327,1320.3,1320.2,22.03895999]
[1673268561448,4.00197327,1320.3,1320.2,14.46435999]
[1673268561837,6.83738815,1320.3,1320.2,14.46435999]
[1673268562048,6.84338815,1320.3,1320.2,14.46435999]
[1673268562259,6.84338815,1320.3,1320.2,11.46435999]
[1673268562489,27.29450527,1320.3,1320.2,3.88975999]
[1673268562832,4.57241527,1320.3,1320.2,3.79375999]
[1673268562972,6.83574888,1320.3,1320.2,3.79375999]
[1673268563183,6.84174888,1320.3,1320.2,3.79375999]
[1673268563387,6.84174888,1320.3,1320.2,11.36835999]
[1673268563666,6.84174888,1320.3,1320.2,11.46435999]
[1673268563839,6.84174888,1320.3,1320.2,3.88975999]
[1673268564059,6.84174888,1320.3,1320.2,3.79375999]
[1673268567243,4.006334,1320.3,1320.2,3.79375999]
[1673268567395,4.000334,1320.3,1320.2,3.79375999]
[1673268568369,6.83574888,1320.3,1320.2,3.79375999]
[1673268568576,6.84155291,1320.3,1320.2,3.79375999]
[1673268568777,4.57241527,1320.3,1320.2,3.79375999]
[1673268568972,4.56641527,1320.3,1320.2,3.79375999]
[1673268569330,6.83548928,1320.3,1320.2,3.79375999]
[1673268569649,6.84148928,1320.3,1320.2,3.79375999]
[1673268574694,4.57241527,1320.3,1320.2,3.79375999]
[1673268575004,4.56641527,1320.3,1320.2,3.79375999]
[1673268576213,4.56641527,1320.3,1320.2,3.78991024]
[1673268576430,4.56927851,1320.3,1320.2,3.78991024]
[1673268577971,4.57127851,1320.3,1320.2,3.78991024]
[1673268578151,4.56927851,1320.3,1320.2,3.78991024]
[1673268578350,6.84032166,1320.3,1320.2,26.51371024]
[1673268578549,5.11532166,1320.3,1320.2,26.60971024]
[1673268579634,2.27704354,1320.3,1320.2,26.60971024]
[1673268579800,2.27104354,1320.3,1320.2,26.60971024]
[1673268580330,5.10932166,1320.3,1320.2,26.60971024]
[1673268580545,5.11532166,1320.3,1320.2,26.60971024]
[1673268583006,2.27704354,1320.3,1320.2,26.60971024]
[1673268583214,2.27104354,1320.3,1320.2,26.60971024]
[1673268583975,5.10932166,1320.3,1320.2,30.02816826]
[1673268584167,5.11532166,1320.3,1320.2,30.02816826]
[1673268585396,5.11532166,1320.3,1320.2,26.60971024]
[1673268591227,5.11532166,1320.3,1320.2,19.03511024]
[1673268591594,2.84427851,1320.3,1320.2,19.03511024]
[1673268591864,2.83827851,1320.3,1320.2,19.03511024]
[1673268596625,2.83827851,1320.3,1320.2,19.0320113]
[1673268597156,2.83827851,1320.3,1320.2,11.4574113]
[1673268599415,2.83827851,1320.3,1320.2,19.0320113]
[1673268600455,3.9e-07,1320.3,1320.2,3.8828113]
[1673268600686,3.9e-07,1320.3,1320.2,3.7868113]
[1673268600897,2.83992557,1320.3,1320.2,3.7868113]
[1673268601261,2.83992557,1320.3,1320.2,11.3614113]
[1673268601625,2.83992557,1320.3,1320.2,3.8828113]
[1673268601801,2.83992557,1320.3,1320.2,3.7868113]
[1673268610852,2.83992557,1320.3,1320.2,11.3614113]
[1673268611168,2.83992557,1320.3,1320.2,11.4574113]
[1673268611383,2.83992557,1320.3,1320.2,3.8828113]
[1673268611681,2.83992557,1320.3,1320.2,3.7868113]
[1673268612243,2.83992557,1320.3,1320.2,11.3614113]
[1673268612448,2.83992557,1320.3,1320.2,11.4574113]
[1673268614253,3.9e-07,1320.3,1320.2,11.4574113]
[1673268615179,2.84029106,1320.3,1320.2,11.4574113]
[1673268616658,3.9e-07,1320.3,1320.2,11.4574113]
[1673268618635,3.40246153,1320.3,1320.2,3.8828113]
[1673268618864,3.40246153,1320.3,1320.2,3.7868113]
[1673268619099,3.40246153,1320.3,1320.2,3.7843628]
[1673268619485,18.55052153,1320.3,1320.2,3.7843628]
[1673268619687,10.98249153,1320.3,1320.2,3.7843628]
[1673268621290,3.40846153,1320.3,1320.2,3.7843628]
[1673268621626,3.40246153,1320.3,1320.2,3.7843628]
[1673268621801,3.40446153,1320.3,1320.2,3.7843628]
[1673268622002,3.40246153,1320.3,1320.2,3.7843628]
[1673268624428,10.97649153,1320.3,1320.2,3.7843628]
[1673268624741,10.98249153,1320.3,1320.2,3.7843628]
[1673268626103,10.9795887,1320.3,1320.2,3.7843628]
[1673268626742,7.58003,1320.3,1320.2,3.7843628]
[1673268628257,15.15406,1320.3,1320.2,3.7843628]
[1673268629702,7.58003,1320.3,1320.2,3.7843628]
[1673268630973,0.006,1320.3,1320.2,3.7843628]
[1673268631182,0.09046039,1320.4,1320.2,3.7843628]
[1673268631382,0.09046039,1320.4,1320.2,11.3589528]
[1673268631383,0.08446039,1320.4,1320.2,11.3589528]
[1673268631584,0.08446039,1320.4,1320.2,11.4549528]
[1673268632277,3.49179434,1320.4,1320.2,11.4549528]
[1673268632636,3.49179434,1320.4,1320.2,3.8803628]
[1673268632888,2.83947256,1320.3,1320.2,3.7843628]
[1673268633644,2.83947256,1320.3,1320.2,11.3589628]
[1673268633809,2.83947256,1320.3,1320.2,11.4549628]
[1673268634021,2.83451656,1320.3,1320.2,11.4549628]
[1673268634210,2.83451656,1320.3,1320.2,3.8803628]
[1673268634429,2.83451656,1320.3,1320.2,3.7843628]
[1673268635702,2.83451656,1320.3,1320.2,18.9335628]
[1673268635703,5.10626761,1320.3,1320.2,18.9335628]
[1673268635938,2.84051656,1320.3,1320.2,14.11540708]
[1673268636276,2.83451656,1320.3,1320.2,14.11540708]
[1673268637410,5.10611173,1320.3,1320.2,14.11540708]
[1673268637584,5.11211173,1320.3,1320.2,14.11540708]
[1673268642336,5.11211173,1320.3,1320.2,21.69000708]
[1673268642547,5.11211173,1320.3,1320.2,14.11540708]
[1673268642755,5.11211173,1320.3,1320.2,29.26460708]
[1673268643018,5.11211173,1320.3,1320.2,21.69000708]
[1673268643702,5.11211173,1320.3,1320.2,14.11540708]
[1673268643919,5.11211173,1320.3,1320.2,21.69000708]
[1673268644294,5.11211173,1320.3,1320.2,29.26460708]
[1673268644295,2.27759517,1320.3,1320.2,29.26460708]
[1673268644494,2.27159517,1320.3,1320.2,29.26460708]
[1673268645118,2.27159517,1320.3,1320.2,21.69000708]
[1673268647333,2.27159517,1320.3,1320.2,29.26460708]
[1673268650235,2.27159517,1320.3,1320.2,21.69000708]
[1673268651316,2.27159517,1320.3,1320.2,19.0295628]
[1673268651702,5.10611173,1320.3,1320.2,19.0295628]
[1673268651907,5.11211173,1320.3,1320.2,19.0275628]
[1673268652124,5.11211173,1320.3,1320.2,19.0295628]
[1673268652773,5.11211173,1320.3,1320.2,11.4549628]
[1673268657525,5.11211173,1320.3,1320.2,11.45209516]
[1673268659186,5.11211173,1320.3,1320.2,19.02669516]
[1673268659468,5.11211173,1320.3,1320.2,11.45209516]
[1673268660526,5.11211173,1320.3,1320.2,19.02669516]
[1673268660527,5.10878926,1320.3,1320.2,19.02669516]
[1673268661151,5.10878926,1320.3,1320.2,11.45209516]
[1673268661510,2.84051656,1320.3,1320.2,11.45209516]
[1673268661724,2.83451656,1320.3,1320.2,11.45209516]
[1673268663393,2.83451656,1320.3,1320.2,3.87749516]
[1673268663724,2.83451656,1320.3,1320.2,11.35609516]
[1673268664041,2.83451656,1320.3,1320.2,19.02669516]
[1673268664255,2.83451656,1320.3,1320.2,11.45209516]
[1673268665356,2.83451656,1320.3,1320.2,19.02669516]
[1673268668326,2.83451656,1320.3,1320.2,26.60129516]
[1673268668549,5.10630983,1320.3,1320.2,26.60129516]
[1673268668890,0.006,1320.3,1320.2,31.74988968]
[1673268669105,2.36225366,1320.4,1320.3,0.006]
[1673268669415,2.33753315,1320.5,1320.3,29.98275064]
[1673268669627,5.25397565,1320.6,1320.4,6.79766064]
[1673268669785,2.35945909,1320.6,1320.5,28.23530064]
[1673268670002,2.35345909,1320.6,1320.5,28.33130064]
[1673268670356,2.35345909,1320.6,1320.5,34.71336189]
[1673268670568,2.35345909,1320.6,1320.5,8.61266064]
[1673268670569,2.9164425,1320.6,1320.5,8.61266064]
[1673268670738,5.18635138,1320.6,1320.5,16.18554064]
[1673268670952,5.19235138,1320.6,1320.5,16.18554064]
[1673268672193,2.9224425,1320.6,1320.5,16.18554064]
[1673268672459,2.9164425,1320.6,1320.5,16.18554064]
[1673268672990,2.9164425,1320.6,1320.5,23.75842064]
[1673268673453,2.9184425,1320.6,1320.5,23.75642064]
[1673268673666,2.9164425,1320.6,1320.5,23.75842064]
[1673268674354,2.9164425,1320.6,1320.5,31.33130064]
[1673268674523,2.9164425,1320.6,1320.5,35.2700942]
[1673268674732,5.18527487,1320.6,1320.5,35.2700942]
[1673268674926,5.19127487,1320.6,1320.5,35.2700942]
[1673268675131,2.9224425,1320.6,1320.5,35.2700942]
[1673268675347,2.9164425,1320.6,1320.5,35.2700942]
[1673268675822,5.18528406,1320.6,1320.5,35.2700942]
[1673268676031,5.19128406,1320.6,1320.5,35.2700942]
[1673268676194,2.9224425,1320.6,1320.5,33.5510942]
[1673268676402,2.9164425,1320.6,1320.5,33.5510942]
[1673268676611,5.18487814,1320.6,1320.5,33.5510942]
[1673268676875,5.19087814,1320.6,1320.5,33.5510942]
[1673268677553,5.19087814,1320.6,1320.5,25.9782142]
[1673268677554,2.9224425,1320.6,1320.5,25.9782142]
[1673268677765,2.9164425,1320.6,1320.5,22.03942064]
[1673268678083,5.18486949,1320.6,1320.5,22.03942064]
[1673268678297,5.19086949,1320.6,1320.5,22.03942064]
[1673268680810,5.19086949,1320.6,1320.5,6.89366064]
[1673268680959,5.19086949,1320.6,1320.5,14.46654064]
[1673268681797,2.35635293,1320.6,1320.5,22.03942064]
[1673268682018,5.18486949,1320.6,1320.5,22.03942064]
[1673268682228,5.19086949,1320.6,1320.5,22.03942064]
[1673268682559,5.19086949,1320.6,1320.5,19.03942064]
[1673268683600,2.35635293,1320.6,1320.5,26.61230064]
[1673268683815,5.18486949,1320.6,1320.5,26.36490064]
[1673268684010,5.19086949,1320.6,1320.5,11.21914064]
[1673268684222,2.9224425,1320.6,1320.5,3.64626064]
[1673268684492,10.4887525,1320.6,1320.5,3.55026064]
[1673268684659,10.4947525,1320.6,1320.5,3.55026064]
[1673268685096,11.0630525,1320.6,1320.5,3.55026064]
[1673268685688,11.0630525,1320.6,1320.5,3.50026064]
[1673268687052,3.4907425,1320.6,1320.5,3.50026064]
[1673268687216,3.4847425,1320.6,1320.5,3.50026064]
[1673268688645,11.0570525,1320.6,1320.5,3.50026064]
[1673268688897,11.0630525,1320.6,1320.5,3.50026064]
[1673268689121,10.4947525,1320.6,1320.5,3.50026064]
[1673268689692,2.9224425,1320.6,1320.4,0.096]
[1673268689935,2.26769274,1320.5,1320.4,11.37086064]
[1673268690148,2.26769274,1320.5,1320.4,11.46686064]
[1673268691178,2.26769274,1320.5,1320.4,14.4288877]
[1673268691398,0.14792594,1320.6,1320.5,2.00496185]
[1673268691747,0.14792594,1320.6,1320.5,31.52126249]
[1673268691748,0.08192594,1320.6,1320.5,31.52126249]
[1673268691898,0.08192594,1320.6,1320.5,39.96974201]
[1673268693403,1e-06,1320.7,1320.5,41.70074201]
[1673268693613,1e-06,1320.7,1320.6,5.51666064]
[1673268693822,1e-06,1320.7,1320.6,31.32959064]
[1673268694065,1e-06,1320.7,1320.6,32.08790248]
[1673268694372,1e-06,1320.7,1320.6,38.11389368]
[1673268696851,1e-06,1320.7,1320.6,56.89236256]
[1673268697627,1e-06,1320.7,1320.6,64.89236256]
[1673268697839,1e-06,1320.7,1320.6,73.31186256]
[1673268701046,1e-06,1320.7,1320.6,72.22239368]
[1673268706224,1e-06,1320.7,1320.6,70.50339368]
[1673268706642,1e-06,1320.7,1320.6,71.59286256]
[1673268706837,1e-06,1320.7,1320.6,106.59286256]
[1673268708482,1e-06,1320.7,1320.6,105.50339368]
[1673268709071,0.67628317,1321.0,1320.8,0.001999]
[1673268709282,0.67628317,1321.0,1320.9,26.50943064]
[1673268709440,0.67628317,1321.0,1320.9,26.60543064]
[1673268709651,0.10818317,1321.0,1320.9,26.60543064]
[1673268710147,0.10818317,1321.0,1320.9,3.89366064]
[1673268710455,0.10818317,1321.0,1320.9,3.79766064]
[1673268711483,7.67820317,1321.0,1320.9,3.79766064]
[1673268711696,0.11418317,1321.0,1320.9,3.79766064]
[1673268711886,0.10818317,1321.0,1320.9,11.36825064]
[1673268712100,7.67820317,1321.0,1320.9,3.89366064]
[1673268712300,0.11418317,1321.0,1320.9,3.79766064]
[1673268712516,0.10818317,1321.0,1320.9,3.79766064]
[1673268714028,1.83918317,1321.0,1320.9,3.79766064]
[1673268714448,1.83918317,1321.0,1320.9,11.36825064]
[1673268714675,1.83918317,1321.0,1320.9,11.46425064]
[1673268716226,1.83918317,1321.0,1320.9,3.89366064]
[1673268716448,1.83918317,1321.0,1320.9,11.36825064]
[1673268716763,1.83918317,1321.0,1320.9,11.46425064]
[1673268716970,4.10687591,1321.0,1320.9,11.46425064]
[1673268717563,4.10687591,1321.0,1320.9,19.03484064]